bitfinex/quotes_SOLUSD_20250806
["timestamp","ask_amount","ask_price","bid_price","bid_amount"]
[1754469225819,0.03,163.82,163.81,96.52724986]
[1754469226909,0.68,163.82,163.81,96.52724986]
[1754469227493,0.03,163.82,163.81,96.52724986]
[1754469228930,0.68,163.82,163.81,96.52724986]
[1754469229411,0.03,163.82,163.81,96.52724986]
[1754469230336,0.68,163.82,163.8,8.42261645]
[1754469230535,0.68,163.82,163.79,8.42261645]
[1754469231014,0.68,163.82,163.79,14.52790519]
[1754469231398,0.03,163.82,163.79,15.22790519]
[1754469231624,0.03,163.82,163.8,8.42261645]
[1754469232128,0.68,163.82,163.8,8.42261645]
[1754469232606,0.03,163.82,163.79,14.52790519]
[1754469232806,0.03,163.82,163.77,26.0]
[1754469233002,8.42261645,163.79,163.75,90.482617]
[1754469233331,0.65,163.78,163.75,0.06]
[1754469233510,0.65,163.78,163.75,6.16687022]
[1754469233818,8.42261645,163.76,163.75,0.06]
[1754469234238,51.89261645,163.76,163.75,0.06]
[1754469235299,43.47,163.76,163.75,0.06]
[1754469237107,42.82,163.76,163.75,0.06]
[1754469238231,43.47,163.76,163.75,0.06]
[1754469239710,42.82,163.76,163.75,0.06]
[1754469240911,51.89261645,163.76,163.75,0.06]
[1754469241830,43.47,163.76,163.75,0.06]
[1754469242033,42.82,163.76,163.75,0.06]
[1754469242933,42.82,163.76,163.75,0.77]
[1754469243514,42.82,163.76,163.75,0.06]
[1754469247228,62.06807424,163.76,163.75,0.06]
[1754469247605,55.96157693,163.76,163.75,0.06]
[1754469248006,47.53896048,163.76,163.75,0.06]
[1754469248207,55.96157693,163.76,163.75,0.06]
[1754469249612,62.06807424,163.76,163.75,0.06]
[1754469249842,55.9574911,163.76,163.75,0.06]
[1754469251316,62.06398841,163.76,163.75,0.06]
[1754469251725,55.9574911,163.76,163.75,0.06]
[1754469252046,62.06398841,163.76,163.75,0.06]
[1754469253341,55.9574911,163.76,163.75,0.06]
[1754469254448,51.89261645,163.76,163.75,0.06]
[1754469258323,57.99911376,163.76,163.75,0.06]
[1754469259453,61.18544588,163.76,163.75,0.06]
[1754469262629,65.24308932,163.76,163.75,0.06]
[1754469262834,80.34930489,163.76,163.75,0.06]
[1754469263556,41.10621557,163.75,163.74,0.06]
[1754469263726,41.10621557,163.74,163.73,0.06]
[1754469263924,97.07647546,163.74,163.72,0.06]
[1754469264153,13.13025989,163.73,163.72,0.06]
[1754469264528,18.58787608,163.73,163.72,0.06]
[1754469264867,19.23787608,163.73,163.72,0.06]
[1754469265051,34.34409165,163.73,163.72,0.06]
[1754469265329,4.05764344,163.73,163.72,0.06]
[1754469265535,12.48025989,163.73,163.72,0.06]
[1754469266368,13.20025989,163.73,163.72,0.06]
[1754469267159,19.30787608,163.73,163.72,0.06]
[1754469267855,18.58787608,163.73,163.72,0.72]
[1754469268150,12.48025989,163.73,163.72,0.06]
[1754469269243,12.48025989,163.73,163.72,0.72]
[1754469269429,12.48025989,163.73,163.72,0.06]
[1754469270349,13.20025989,163.73,163.72,0.06]
[1754469270529,12.48025989,163.73,163.72,0.06]
[1754469273032,4.05764344,163.73,163.72,0.06]
[1754469273236,46.91764344,163.73,163.72,0.72]
[1754469273441,55.34025989,163.73,163.72,0.72]
[1754469273656,55.34025989,163.73,163.72,0.06]
[1754469274146,62.16787608,163.73,163.72,0.06]
[1754469274354,77.27409165,163.73,163.72,0.06]
[1754469277755,82.35518497,163.73,163.72,0.06]
[1754469279169,41.10621557,163.71,163.7,0.06]
[1754469279377,96.44647546,163.71,163.7,0.06]
[1754469279739,99.63411625,163.71,163.7,0.06]
[1754469280066,100.35411625,163.71,163.7,0.06]
[1754469281345,106.46247859,163.71,163.7,0.06]
[1754469282262,62.88247859,163.71,163.7,0.06]
[1754469282468,84.52790068,163.71,163.7,0.72]
[1754469282672,84.52790068,163.71,163.7,0.06]
[1754469282872,58.52790068,163.71,163.7,0.06]
[1754469283253,84.52790068,163.71,163.7,0.06]
[1754469283788,90.63626302,163.71,163.7,0.06]
[1754469284780,84.52790068,163.71,163.7,0.06]
[1754469286849,90.63626302,163.71,163.7,0.06]
[1754469287850,84.52790068,163.71,163.7,0.72]
[1754469288153,33.24528423,163.71,163.7,0.72]
[1754469288354,76.10528423,163.71,163.7,0.72]
[1754469292451,76.12357165,163.71,163.7,0.72]
[1754469292754,84.5461881,163.71,163.7,0.72]
[1754469292948,50.12357165,163.71,163.7,0.72]
[1754469297967,46.93593086,163.71,163.7,6.82873549]
[1754469298979,46.93593086,163.71,163.7,0.72]
[1754469299574,55.35854731,163.71,163.7,0.06]
[1754469299876,56.07854731,163.71,163.7,0.06]
[1754469300397,55.35854731,163.71,163.7,0.06]
[1754469301194,46.93593086,163.71,163.7,0.75]
[1754469301991,46.91593086,163.71,163.7,0.75]
[1754469302293,46.91593086,163.71,163.7,0.06]
[1754469302993,46.91593086,163.71,163.7,0.75]
[1754469304189,46.91593086,163.71,163.7,6.85873549]
[1754469304881,46.91593086,163.71,163.7,15.28135194]
[1754469307093,46.91593086,163.71,163.7,6.85873549]
[1754469307408,46.91593086,163.71,163.7,0.75]
[1754469307692,46.91593086,163.71,163.7,0.06]
[1754469309871,46.91593086,163.71,163.7,0.75]
[1754469310493,46.92422285,163.71,163.7,0.75]
[1754469311879,46.92422285,163.71,163.7,6.16873549]
[1754469312085,46.92422285,163.71,163.7,6.85873549]
[1754469314608,46.92422285,163.71,163.7,0.06]
[1754469315392,46.92422285,163.71,163.7,6.16873549]
[1754469315697,46.92422285,163.71,163.7,6.85873549]
[1754469318002,46.92422285,163.71,163.7,0.06]
[1754469319515,46.92422285,163.71,163.7,6.16873549]
[1754469320197,46.92422285,163.71,163.7,6.85873549]
[1754469321435,46.92422285,163.71,163.7,12.23890563]
[1754469322934,46.92422285,163.71,163.7,15.2639956]
[1754469323690,0.03,163.72,163.7,97.2639956]
[1754469323895,42.85,163.72,163.71,9.09526011]
[1754469324098,0.03,163.72,163.71,9.09526011]
[1754469324316,0.03,163.72,163.71,0.69]
[1754469324618,0.03,163.72,163.71,9.09526011]
[1754469324916,0.03,163.72,163.7,14.5739956]
[1754469325095,42.82,163.71,163.7,6.16873549]
[1754469325517,42.82,163.71,163.7,0.06]
[1754469325896,43.5,163.71,163.7,0.06]
[1754469326094,47.58425101,163.71,163.7,0.06]
[1754469327002,46.90425101,163.71,163.7,0.06]
[1754469328220,47.09425101,163.71,163.7,0.06]
[1754469328414,46.90425101,163.71,163.7,0.06]
[1754469331427,46.90765869,163.71,163.7,0.06]
[1754469332455,46.90765869,163.71,163.7,0.06]
[1754469333139,55.9929188,163.71,163.7,0.06]
[1754469333825,62.10128114,163.71,163.7,0.06]
[1754469334129,55.9929188,163.71,163.7,0.06]
[1754469334341,62.10128114,163.71,163.7,0.06]
[1754469335539,88.10128114,163.71,163.7,0.06]
[1754469336443,81.9929188,163.71,163.7,0.06]
[1754469336829,4.08765869,163.71,163.7,0.75]
[1754469337042,46.90765869,163.71,163.7,0.75]
[1754469337420,46.90765869,163.71,163.7,0.06]
[1754469338244,46.90727213,163.71,163.7,0.06]
[1754469339044,46.90727213,163.71,163.7,0.75]
[1754469339249,46.90727213,163.71,163.7,0.06]
[1754469339841,46.90727213,163.71,163.7,0.75]
[1754469340039,4.08727213,163.71,163.7,0.75]
[1754469340242,55.99253224,163.71,163.7,0.06]
[1754469340426,62.10089458,163.71,163.7,0.06]
[1754469340746,67.20998474,163.71,163.7,0.06]
[1754469341624,82.31620031,163.71,163.7,0.06]
[1754469341824,82.31620031,163.71,163.68,0.06]
[1754469341825,15.10621557,163.7,163.68,0.06]
[1754469342050,66.5319924,163.69,163.68,0.06]
[1754469342346,67.2119924,163.69,163.68,0.06]
[1754469342557,60.42288372,163.69,163.68,0.06]
[1754469342738,55.31253224,163.69,163.68,0.06]
[1754469343228,55.99253224,163.69,163.68,0.06]
[1754469344056,62.10164092,163.69,163.68,0.06]
[1754469344237,46.90727213,163.69,163.68,0.06]
[1754469344447,55.31253224,163.69,163.68,0.06]
[1754469344951,62.10164092,163.69,163.68,0.06]
[1754469346246,61.42164092,163.69,163.68,0.06]
[1754469347045,62.10164092,163.69,163.68,0.06]
[1754469347760,77.20785649,163.69,163.68,0.06]
[1754469348052,82.31820797,163.69,163.68,0.06]
[1754469348220,82.31177427,163.69,163.68,0.06]
[1754469348424,77.20785649,163.69,163.68,0.06]
[1754469348618,34.38785649,163.69,163.68,0.06]
[1754469348847,76.52785649,163.69,163.68,0.06]
[1754469349230,82.31186547,163.69,163.68,0.06]
[1754469353659,34.38785649,163.69,163.68,0.06]
[1754469353838,107.62571181,163.69,163.68,0.06]
[1754469354453,108.30571181,163.69,163.68,0.06]
[1754469354655,82.30571181,163.69,163.68,0.06]
[1754469354858,77.20785649,163.69,163.68,0.06]
[1754469355230,82.30318448,163.69,163.68,0.06]
[1754469356028,77.20785649,163.69,163.68,0.06]
[1754469356231,77.20785649,163.69,163.66,0.06]
[1754469356232,15.10621557,163.68,163.66,0.06]
[1754469356459,86.4052789,163.67,163.66,0.06]
[1754469356631,82.00253224,163.67,163.66,0.06]
[1754469357260,88.11238743,163.67,163.66,0.06]
[1754469360544,87.42238743,163.67,163.66,0.06]
[1754469360744,88.11238743,163.67,163.66,0.06]
[1754469363463,87.42238743,163.67,163.66,0.06]
[1754469363670,102.528603,163.67,163.66,0.74]
[1754469364667,106.40694828,163.67,163.66,0.06]
[1754469368493,41.10621557,163.63,163.58,0.68]
[1754469368698,8.40526011,163.59,163.58,0.68]
[1754469368864,51.24526011,163.59,163.54,8.40526011]
[1754469369464,51.24526011,163.59,163.55,0.68]
[1754469370156,57.35823604,163.59,163.56,0.68]
[1754469370381,57.35823604,163.59,163.53,0.78]
[1754469370382,8.40526011,163.57,163.53,0.78]
[1754469370582,51.24526011,163.56,163.53,0.1]
[1754469370762,51.24526011,163.56,163.54,0.68]
[1754469370980,51.24526011,163.56,163.55,0.68]
[1754469371292,42.84,163.56,163.55,0.68]
[1754469373399,42.84,163.56,163.53,0.78]
[1754469373767,42.84,163.56,163.53,6.89503542]
[1754469373966,42.84,163.56,163.54,0.68]
[1754469374270,42.84,163.56,163.55,0.68]
[1754469375390,8.40526011,163.58,163.55,0.68]
[1754469375696,42.84,163.57,163.55,0.68]
[1754469376267,42.84,163.57,163.56,0.68]
[1754469376703,8.40526011,163.61,163.56,9.08526011]
[1754469376876,42.84,163.6,163.57,9.08526011]
[1754469377068,42.84,163.6,163.57,8.40526011]
[1754469377269,8.40526011,163.58,163.55,0.68]
[1754469377512,42.84,163.57,163.56,0.68]
[1754469378394,42.84,163.57,163.56,15.1992244]
[1754469379378,42.84,163.57,163.56,0.68]
[1754469381277,42.84,163.57,163.54,0.68]
[1754469381278,51.24526011,163.57,163.54,0.68]
[1754469381485,42.84,163.57,163.55,0.68]
[1754469382407,42.84,163.57,163.55,6.79425313]
[1754469382607,42.84,163.57,163.56,0.68]
[1754469383324,42.84,163.57,163.56,9.08526011]
[1754469383688,34.40526011,163.62,163.56,9.08526011]
[1754469384022,46.90776498,163.61,163.57,9.08526011]
[1754469384209,4.06776498,163.6,163.58,0.68]
[1754469384371,42.84,163.59,163.58,0.68]
[1754469385583,51.24526011,163.59,163.56,0.68]
[1754469386272,51.24526011,163.59,163.56,6.79393321]
[1754469386468,42.84,163.59,163.57,0.67]
[1754469386695,8.40526011,163.61,163.57,0.67]
[1754469386881,46.9110717,163.6,163.57,0.67]
[1754469387081,42.84,163.6,163.57,0.67]
[1754469387302,4.07150007,163.59,163.58,0.67]
[1754469387609,3.18945709,163.62,163.58,8.40526011]
[1754469387776,4.07259364,163.65,163.61,8.40526011]
[1754469388101,0.7,163.67,163.62,9.07526011]
[1754469388102,42.84,163.64,163.62,9.07526011]
[1754469388282,42.84,163.64,163.62,8.40526011]
[1754469388483,42.84,163.64,163.61,6.11180816]
[1754469388700,42.84,163.64,163.62,9.07526011]
[1754469390288,42.84,163.64,163.63,9.07526011]
[1754469390487,42.84,163.64,163.63,0.67]
[1754469391600,42.84,163.64,163.63,6.78134877]
[1754469392816,42.84,163.64,163.63,15.18660888]
[1754469393315,42.82,163.64,163.63,15.18660888]
[1754469394380,42.82,163.64,163.63,6.78134877]
[1754469394585,42.82,163.64,163.63,15.18660888]
[1754469397489,39.70547997,163.69,163.63,15.18660888]
[1754469397791,47.59426237,163.68,163.65,8.40526011]
[1754469398000,43.52,163.68,163.65,8.40526011]
[1754469398617,43.52,163.68,163.65,14.51575694]
[1754469398817,42.82,163.68,163.65,14.51575694]
[1754469399024,42.82,163.68,163.66,0.67]
[1754469399388,42.82,163.68,163.66,9.07526011]
[1754469399917,13.00547997,163.69,163.67,9.07526011]
[1754469400120,42.82,163.68,163.65,6.11049683]
[1754469400325,42.82,163.68,163.67,8.40526011]
[1754469400706,42.82,163.68,163.67,15.1851153]
[1754469402002,0.03,163.7,163.67,30.45975329]
[1754469402193,0.03,163.7,163.69,8.40526011]
[1754469402392,0.03,163.72,163.69,31.91673579]
[1754469402611,0.03,163.72,163.71,8.40526011]
[1754469402813,0.03,163.72,163.71,15.18362245]
[1754469403592,0.03,163.72,163.7,14.51385735]
[1754469403790,42.82,163.71,163.7,6.10859724]
[1754469404009,42.82,163.71,163.7,15.18385735]
[1754469404894,42.82,163.71,163.7,6.77859724]
[1754469405104,42.82,163.71,163.7,8.40526011]
[1754469405331,42.82,163.71,163.69,8.40526011]
[1754469405508,43.06,163.71,163.69,8.40526011]
[1754469405709,43.06,163.71,163.68,14.51460789]
[1754469406219,43.06,163.71,163.69,8.40526011]
[1754469406812,0.03,163.72,163.71,6.10836234]
[1754469407122,42.87,163.72,163.71,15.18362245]
[1754469407323,42.87,163.72,163.71,8.40526011]
[1754469407619,43.11,163.72,163.7,8.40526011]
[1754469407822,42.87,163.72,163.7,14.51395129]
[1754469408121,42.87,163.72,163.71,9.07526011]
[1754469409010,42.87,163.72,163.71,15.18362245]
[1754469413415,0.03,163.72,163.71,15.18362245]
[1754469416913,0.03,163.72,163.71,14.51362245]
[1754469417818,0.03,163.72,163.71,8.40526011]
[1754469418219,0.27,163.72,163.7,8.40526011]
[1754469418427,43.1,163.71,163.69,14.51421558]
[1754469418624,43.1,163.71,163.68,6.10948191]
[1754469418812,43.1,163.71,163.69,8.40526011]
[1754469419835,43.1,163.71,163.7,8.40526011]
[1754469420008,42.86,163.71,163.7,8.40526011]
[1754469420918,42.86,163.71,163.69,6.16881866]
[1754469421135,43.1,163.71,163.69,8.46526011]
[1754469421932,42.86,163.71,163.69,14.57422924]
[1754469422321,42.86,163.71,163.7,9.07526011]
[1754469422837,42.86,163.71,163.7,15.1839956]
[1754469423046,42.86,163.71,163.7,14.5139956]
[1754469425221,43.57,163.71,163.69,8.46526011]
[1754469425415,0.71,163.7,163.69,8.46526011]
[1754469426337,0.71,163.7,163.69,0.06]
[1754469426907,42.86,163.71,163.69,0.06]
[1754469427108,0.71,163.7,163.69,0.06]
[1754469429922,42.86,163.71,163.69,0.06]
[1754469430139,42.86,163.71,163.69,8.46526011]
[1754469430448,42.86,163.71,163.69,9.13526011]
[1754469430747,42.86,163.71,163.69,8.46526011]
[1754469431430,43.57,163.71,163.69,0.06]
[1754469432568,42.86,163.71,163.69,0.06]
[1754469433945,4.77351605,163.7,163.69,0.06]
[1754469435228,4.06351605,163.7,163.69,0.06]
[1754469437040,4.77351605,163.7,163.69,0.06]
[1754469438146,4.06351605,163.7,163.69,0.06]
[1754469441844,4.06351605,163.7,163.69,0.73]
[1754469442539,4.06351605,163.7,163.69,0.06]
[1754469443363,4.29351605,163.7,163.69,0.06]
[1754469443565,4.06351605,163.7,163.69,0.06]
[1754469446651,4.29351605,163.7,163.69,0.06]
[1754469447365,4.06351605,163.7,163.69,0.06]
[1754469450363,19.03751165,163.7,163.69,0.06]
[1754469452178,34.14372722,163.7,163.69,0.06]
[1754469452355,39.21579198,163.7,163.69,0.06]
[1754469452676,41.10621557,163.68,163.67,0.06]
[1754469452973,96.37499173,163.68,163.67,0.06]
[1754469453175,97.04499173,163.68,163.67,0.06]
[1754469453962,103.15447364,163.68,163.67,0.06]
[1754469454779,81.26877616,163.68,163.67,0.06]
[1754469455083,72.86351605,163.68,163.67,0.06]
[1754469455247,81.26877616,163.68,163.67,0.06]
[1754469455449,38.46877616,163.68,163.67,0.06]
[1754469455650,81.26877616,163.68,163.67,0.06]
[1754469455849,87.37825807,163.68,163.67,0.06]
[1754469456379,88.04825807,163.68,163.67,0.06]
[1754469457183,79.64299796,163.68,163.67,0.06]
[1754469457359,88.04825807,163.68,163.67,0.06]
[1754469457678,103.15447364,163.68,163.67,0.06]
[1754469458986,81.26877616,163.68,163.67,0.06]
[1754469459489,87.37825807,163.68,163.67,0.06]
[1754469460690,81.26877616,163.68,163.67,0.06]
[1754469461154,87.37825807,163.68,163.67,0.06]
[1754469462186,78.97299796,163.68,163.67,0.06]
[1754469464984,87.37825807,163.68,163.67,0.06]
[1754469465192,87.38855737,163.68,163.67,0.06]
[1754469466964,78.98329726,163.68,163.67,0.06]
[1754469469087,87.38855737,163.68,163.67,0.06]
[1754469469591,88.05855737,163.68,163.67,0.06]
[1754469470587,87.38855737,163.68,163.67,0.06]
[1754469478487,87.38855737,163.68,163.67,0.06]
[1754469478804,15.10621557,163.67,163.66,0.06]
[1754469479016,33.39890261,163.67,163.66,0.06]
[1754469481018,39.5087578,163.67,163.66,0.06]
[1754469481599,38.7887578,163.67,163.66,0.06]
[1754469481801,10.18367054,163.67,163.66,0.06]
[1754469482103,61.38893065,163.67,163.66,0.06]
[1754469482673,61.38893065,163.67,163.66,0.72]
[1754469483486,61.38893065,163.67,163.66,0.06]
[1754469485409,46.87381535,163.67,163.66,0.72]
[1754469486025,46.87381535,163.67,163.66,0.06]
[1754469486198,61.38893065,163.67,163.66,0.06]
[1754469486507,62.10893065,163.67,163.66,0.06]
[1754469487105,52.98367054,163.67,163.66,0.06]
[1754469487285,61.38893065,163.67,163.66,0.72]
[1754469487622,72.90381535,163.67,163.66,0.72]
[1754469488813,87.41893065,163.67,163.66,0.72]
[1754469488978,81.30907546,163.67,163.66,0.06]
[1754469490709,87.41893065,163.67,163.66,0.06]
[1754469493307,81.30907546,163.67,163.66,0.72]
[1754469494013,81.30907546,163.67,163.66,0.06]
[1754469494320,86.40268704,163.67,163.66,0.06]
[1754469495033,9.19742693,163.67,163.66,0.72]
[1754469495190,46.90381535,163.67,163.66,0.72]
[1754469496191,60.40268704,163.67,163.66,0.06]
[1754469497293,66.51254223,163.67,163.66,0.06]
[1754469500220,51.99742693,163.67,163.66,0.06]
[1754469500392,51.99742693,163.67,163.66,0.72]
[1754469500595,4.10381535,163.67,163.66,0.72]
[1754469500922,46.90381535,163.67,163.66,0.72]
[1754469501305,61.41893065,163.67,163.66,0.06]
[1754469501501,66.51254223,163.67,163.66,0.06]
[1754469501898,92.51254223,163.67,163.66,0.06]
[1754469502128,92.51254223,163.67,163.64,0.06]
[1754469502129,26.0,163.65,163.64,0.06]
[1754469502312,72.85381535,163.65,163.64,0.06]
[1754469504317,72.85381535,163.65,163.64,0.72]
[1754469504634,72.85381535,163.65,163.64,0.06]
[1754469505403,72.85381535,163.65,163.64,0.72]
[1754469506419,72.85381535,163.65,163.64,0.06]
[1754469506829,78.96441724,163.65,163.64,0.06]
[1754469507933,72.85381535,163.65,163.64,0.06]
[1754469508733,72.85381535,163.65,163.64,0.75]
[1754469510923,46.85381535,163.65,163.64,0.75]
[1754469511841,52.96441724,163.65,163.64,0.06]
[1754469512942,61.36967735,163.65,163.64,0.06]
[1754469513443,66.47823343,163.65,163.64,0.06]
[1754469513938,67.17823343,163.65,163.64,0.06]
[1754469514139,81.96867838,163.65,163.64,0.06]
[1754469514446,15.10621557,163.64,163.63,0.06]
[1754469514618,34.39424752,163.64,163.63,0.06]
[1754469514831,28.28529103,163.64,163.63,0.06]
[1754469515148,35.08994322,163.64,163.63,0.06]
[1754469515728,38.27786579,163.64,163.63,0.06]
[1754469516038,44.3888411,163.64,163.63,0.06]
[1754469517138,32.11210528,163.61,163.58,0.69]
[1754469517336,55.25907546,163.6,163.58,0.69]
[1754469517535,4.07381535,163.59,163.58,0.69]
[1754469517946,4.07381535,163.59,163.56,14.51910766]
[1754469518152,46.85381535,163.58,163.56,14.51910766]
[1754469518342,42.78,163.58,163.56,14.51910766]
[1754469518550,42.78,163.58,163.57,0.69]
[1754469518750,42.78,163.58,163.57,9.09526011]
[1754469519259,42.78,163.58,163.57,15.20885062]
[1754469520327,42.78,163.59,163.57,30.49282689]
[1754469520527,42.78,163.59,163.58,9.09526011]
[1754469520828,42.78,163.61,163.58,9.09526011]
[1754469521049,0.03,163.67,163.6,16.81052022]
[1754469521352,46.85839557,163.66,163.63,8.40526011]
[1754469521528,4.07839557,163.65,163.61,9.09526011]
[1754469521733,51.88526011,163.66,163.62,0.69]
[1754469521734,46.85839557,163.64,163.62,0.69]
[1754469522051,42.78,163.64,163.62,0.69]
[1754469522248,42.78,163.64,163.62,6.80164203]
[1754469522846,42.78,163.64,163.62,0.69]
[1754469523032,42.78,163.64,163.6,9.09526011]
[1754469523354,42.78,163.64,163.61,0.69]
[1754469523533,42.78,163.64,163.6,14.51766058]
[1754469523534,4.07787397,163.63,163.6,14.51766058]
[1754469523734,42.78,163.62,163.6,15.20766058]
[1754469523930,42.78,163.62,163.6,14.51766058]
[1754469524137,42.78,163.62,163.61,0.69]
[1754469525062,42.78,163.62,163.58,6.80318435]
[1754469525239,4.077576,163.61,163.59,8.40526011]
[1754469525433,42.78,163.6,163.59,9.09526011]
[1754469525660,42.78,163.6,163.59,8.40526011]
[1754469525849,42.78,163.6,163.58,6.11318435]
[1754469526055,42.78,163.6,163.57,14.51869093]
[1754469526258,42.78,163.6,163.57,6.80343082]
[1754469527550,4.07945316,163.59,163.57,6.80343082]
[1754469527751,42.78,163.58,163.57,6.80343082]
[1754469527960,42.78,163.58,163.57,0.69]
[1754469528256,42.78,163.58,163.55,15.20945025]
[1754469528257,46.85862903,163.58,163.55,15.20945025]
[1754469528456,42.78,163.58,163.55,15.20945025]
[1754469528855,42.78,163.58,163.55,6.80419014]
[1754469529243,43.48,163.58,163.55,6.80419014]
[1754469529468,43.48,163.58,163.55,6.11419014]
[1754469530740,43.48,163.58,163.53,0.1]
[1754469530741,13.18122847,163.57,163.53,0.1]
[1754469530970,13.18122847,163.57,163.53,0.79]
[1754469530971,46.85596836,163.56,163.53,0.79]
[1754469531274,42.78,163.56,163.53,0.79]
[1754469531486,42.78,163.56,163.53,6.90503572]
[1754469531659,42.78,163.56,163.53,15.31029583]
[1754469532183,42.78,163.56,163.53,6.90503572]
[1754469532865,42.78,163.56,163.54,0.69]
[1754469534881,42.78,163.56,163.55,0.69]
[1754469535385,42.78,163.56,163.55,6.80433812]
[1754469536167,9.09526011,163.59,163.55,6.80433812]
[1754469536369,46.8503876,163.58,163.55,6.80433812]
[1754469536584,42.78,163.58,163.55,6.80433812]
[1754469536787,0.69,163.58,163.55,6.11433812]
[1754469536972,42.78,163.57,163.55,6.11433812]
[1754469537170,9.09526011,163.58,163.54,6.83455517]
[1754469537380,43.47,163.57,163.54,6.83455517]
[1754469537557,4.75891493,163.56,163.51,0.06]
[1754469537883,34.40526011,163.52,163.51,0.06]
[1754469538084,68.8,163.52,163.51,0.06]
[1754469540889,42.8,163.52,163.51,9.18526011]
[1754469541193,42.8,163.52,163.51,0.06]
[1754469541573,42.8,163.52,163.51,0.78]
[1754469541771,42.8,163.52,163.51,0.06]
[1754469542100,42.8,163.52,163.51,0.78]
[1754469542800,42.8,163.52,163.51,9.18526011]
[1754469542977,42.8,163.52,163.51,15.301094]
[1754469548897,42.8,163.53,163.51,15.301094]
[1754469549095,42.8,163.53,163.52,15.24071999]
[1754469552683,42.8,163.53,163.52,14.52071999]
[1754469552894,42.8,163.53,163.52,15.24071999]
[1754469553583,42.8,163.53,163.52,14.52071999]
[1754469554199,42.8,163.53,163.52,15.24071999]
[1754469558101,42.8,163.53,163.52,14.52071999]
[1754469558514,43.49,163.53,163.51,82.06]
[1754469558682,42.8,163.53,163.51,82.06]
[1754469558884,0.69,163.52,163.51,82.06]
[1754469559824,13.16939884,163.52,163.51,0.06]
[1754469559987,15.13621557,163.55,163.51,8.46526011]
[1754469560185,0.03,163.55,163.54,8.40526011]
[1754469560385,0.03,163.55,163.54,9.12526011]
[1754469560682,0.03,163.55,163.54,0.72]
[1754469561019,0.03,163.55,163.54,9.12526011]
[1754469561311,0.03,163.55,163.54,15.2399721]
[1754469561690,0.03,163.55,163.51,16.06958473]
[1754469562008,0.72,163.55,163.53,8.40526011]
[1754469562313,0.72,163.55,163.52,6.11545988]
[1754469562812,0.72,163.55,163.52,14.52071999]
[1754469563315,0.72,163.55,163.53,8.40526011]
[1754469563316,0.03,163.55,163.53,8.40526011]
[1754469564309,0.03,163.55,163.53,14.52004087]
[1754469564693,0.03,163.55,163.54,8.40526011]
[1754469565612,0.03,163.55,163.53,15.24004087]
[1754469566115,0.03,163.55,163.53,14.52004087]
[1754469566817,0.03,163.55,163.54,9.08526011]
[1754469566990,10.45315241,163.57,163.54,9.08526011]
[1754469567194,10.45315241,163.57,163.56,8.40526011]
[1754469567511,10.45315241,163.57,163.56,9.08526011]
[1754469568586,42.86,163.6,163.57,21.39756678]
[1754469568786,42.86,163.6,163.59,8.40526011]
[1754469569011,42.86,163.6,163.59,9.08526011]
[1754469570599,0.03,163.62,163.59,15.19810319]
[1754469570799,0.03,163.62,163.61,8.40526011]
[1754469572500,0.03,163.62,163.61,9.08526011]
[1754469572703,0.03,163.62,163.61,15.19735594]
[1754469573233,0.03,163.62,163.61,14.51735594]
[1754469574610,26.0,163.59,163.54,6.79446278]
[1754469574817,43.52,163.58,163.55,8.40526011]